fUSD/lending_fUSD_20240123
["ID","MTS","AMOUNT","RATE_DAILY","PERIOD"]
[312597406,1706050244342,-1000.0,0.00030019,7]
[312597408,1706050244351,-50000.0,0.00030019,7]
[312597410,1706050244360,-1000.0,0.00030019,7]
[312597412,1706050244370,-1000.0,0.00030019,7]
[312597414,1706050244379,-150.0,0.00030099,2]
[312597416,1706050244388,-251.65794723,0.000301,4]
[312597418,1706050244397,-1150.0,0.000301,2]
[312597420,1706050244406,-153.84,0.00030137,2]
[312597422,1706050244415,-1975.5,0.00030137,2]
[312597424,1706050244424,-152.72,0.00030137,2]
[312597426,1706050244433,-155.0,0.00030137,2]
[312597428,1706050244443,-150.0,0.00030182,2]
[312597430,1706050244452,-176.47,0.00030192,2]
[312597432,1706050244461,-2000.0,0.00030199,2]
[312597434,1706050244470,-200.0,0.00030199,2]
[312597436,1706050244480,-167.02,0.00030212,2]
[312597438,1706050244489,-1000.0,0.00030261,7]
[312597440,1706050244499,-1000.0,0.00030261,7]
[312597442,1706050244508,-1000.0,0.00030261,7]
[312597444,1706050244518,-1000.0,0.00030261,7]
[312597446,1706050244527,-1000.0,0.00030261,7]
[312597448,1706050244536,-712.49,0.00030281,2]
[312597450,1706050244545,-990.24,0.00030281,2]
[312597452,1706050244555,-806.29,0.00030281,2]
[312597454,1706050244563,-921.87,0.00030281,2]
[312597456,1706050244572,-167.0,0.0003029,2]
[312597458,1706050244581,-2000.0,0.00030501,2]
[312597460,1706050244591,-200.0,0.00030501,2]
[312597462,1706050244600,-712.49,0.00030569,2]
[312597464,1706050244609,-990.24,0.00030569,2]
[312597466,1706050244622,-806.29,0.00030569,2]
[312597468,1706050244630,-921.87,0.00030569,2]
[312597470,1706050244640,-285.62770854,0.00030586,2]
[312597472,1706050244649,-150.0,0.00030599,2]
[312597474,1706050244657,-1593.35187145,0.00030612,5]
[312597475,1706050244666,-8267.51678191,0.00030615,2]
[312597477,1706050244675,-150.9,0.00030685,2]
[312597479,1706050244683,-176.47,0.0003074,2]
[312597481,1706050244692,-1482.829003,0.00030784,2]
[312597483,1706050244701,-2673.2055678,0.00030784,2]
[312597485,1706050244710,-1000.0,0.00030805,7]
[312597486,1706050244719,-2000.0,0.00030806,2]
[312597488,1706050244728,-205.0,0.0003085,2]
[312597490,1706050244736,-712.49,0.00030858,2]
[312597492,1706050244745,-990.24,0.00030858,2]
[312597494,1706050244754,-806.29,0.00030858,2]
[312597496,1706050244763,-921.87,0.00030858,2]
[312597498,1706050244772,-500.0,0.00030977,2]
[312597500,1706050244781,-150.0,0.00030999,2]
[312597502,1706050244791,-156.09660237,0.00030999,2]
[312597504,1706050244800,-4765.21330412,0.00031,4]
[312597506,1706050244810,-155.1395178,0.00031,4]
[312597508,1706050244819,-84688.56571703,0.00031,7]
[312597510,1706050244828,-10414.21238255,0.00031,2]
[312597512,1706050244837,-600.0,0.00031,3]
[312597514,1706050244846,-500.0,0.00031,7]
[312597516,1706050244854,-150.0,0.00031099,2]
[312597518,1706050244863,-2000.0,0.00031114,2]
[312597519,1706050244873,-712.49,0.00031146,2]
[312597521,1706050244882,-990.24,0.00031146,2]
[312597523,1706050244891,-806.29,0.00031146,2]
[312597525,1706050244900,-921.87,0.00031146,2]
[312597527,1706050244910,-167.0,0.00031173,2]
[312597529,1706050244919,-167.02,0.00031178,2]
[312597531,1706050244928,-176.47,0.00031288,2]
[312597533,1706050244937,-1438.82,0.00031304,2]
[312597535,1706050244947,-150.62584722,0.0003131,2]
[312597537,1706050244958,-155.01065604,0.0003131,2]
[312597539,1706050244967,-712.49,0.00031435,2]
[312597541,1706050244976,-990.24,0.00031435,2]
[312597543,1706050244986,-806.29,0.00031435,2]
[312597545,1706050244996,-921.87,0.00031435,2]
[312597547,1706050245005,-500.0,0.00031481,2]
[312597549,1706050245015,-152.72,0.00031507,2]
[312597551,1706050245026,-155.0,0.00031507,2]
[312597553,1706050245035,-8267.51678191,0.00031522,3]
[312597555,1706050245045,-964.0,0.00031626,2]
[312597557,1706050245055,-180.0,0.00031644,2]
[312597559,1706050245064,-184.18,0.00031644,2]
[312597561,1706050245074,-57795.96,0.000317,2]
[312597563,1706050245083,-226.0,0.00031708,2]
[312597565,1706050245092,-712.49,0.00031723,2]
[312597567,1706050245100,-990.24,0.00031723,2]
[312597569,1706050245109,-806.29,0.00031723,2]
[312597571,1706050245118,-921.87,0.00031723,2]
[312597573,1706050245128,-203.0,0.00031727,8]
[312597575,1706050245137,-2626.0104781,0.00031777,2]
[312597577,1706050245145,-192251.3955393,0.00031777,2]
[312597579,1706050245155,-3357.8990486,0.00031778,2]
[312597581,1706050245164,-150.9,0.00031781,2]
[312597583,1706050245176,-300.0,0.00031799,2]
[312597585,1706050245184,-443.84,0.00031832,2]
[312597587,1706050245193,-253.63329558,0.00031836,2]
[312597589,1706050245202,-1000.0,0.00031899,2]
[312597591,1706050245211,-18241.47357563,0.00032,2]
[312597593,1706050245220,-300.03695981,0.00032,4]
[312597595,1706050245230,-13161.50389047,0.00032,4]
[312597597,1706050245239,-300000.0,0.00032,4]
[312597599,1706050245248,-220.75699255,0.00032,4]
[312597601,1706050245257,-155.14566326,0.00032,2]
[312597603,1706050245266,-500.0,0.00032,7]
[312597605,1706050245275,-21099.84188045,0.00032,2]
[312597607,1706050245284,-156.28347225,0.00032,2]
[312597609,1706050245293,-156.28347225,0.00032,2]
[312597611,1706050245302,-156.28347225,0.00032,2]
[312597613,1706050245311,-156.28347225,0.00032,2]
[312597615,1706050245320,-156.28347225,0.00032,2]
[312597617,1706050245329,-156.28347225,0.00032,2]
[312597619,1706050245338,-156.28347225,0.00032,2]
[312597621,1706050245348,-156.28347225,0.00032,2]
[312597623,1706050245357,-156.28347225,0.00032,2]
[312597625,1706050245367,-156.28347225,0.00032,2]
[312597627,1706050245377,-156.28347225,0.00032,2]
[312597629,1706050245386,-156.28347225,0.00032,2]
[312597631,1706050245395,-156.28347225,0.00032,2]
[312597633,1706050245404,-156.28347225,0.00032,2]
[312597635,1706050245413,-156.28347225,0.00032,2]
[312597637,1706050245422,-156.28347225,0.00032,2]
[312597639,1706050245431,-156.28347225,0.00032,2]
[312597640,1706050245440,-156.28347225,0.00032,2]
[312597642,1706050245449,-156.28347225,0.00032,2]
[312597644,1706050245458,-156.28347225,0.00032,2]
[312597646,1706050245468,-156.28347225,0.00032,2]
[312597648,1706050245477,-156.28347225,0.00032,2]
[312597650,1706050245486,-156.28347225,0.00032,2]
[312597652,1706050245495,-156.28347225,0.00032,2]
[312597654,1706050245504,-156.28347225,0.00032,2]
[312597656,1706050245513,-156.28347225,0.00032,2]
[312597658,1706050245522,-156.28347225,0.00032,2]
[312597660,1706050245531,-156.28347225,0.00032,2]
[312597662,1706050245539,-156.28347225,0.00032,2]
[312597664,1706050245548,-156.28347225,0.00032,2]
[312597666,1706050245558,-156.28347225,0.00032,2]
[312597668,1706050245568,-156.28347225,0.00032,2]
[312597670,1706050245577,-156.28347225,0.00032,2]
[312597672,1706050245586,-156.28347225,0.00032,2]
[312597674,1706050245595,-156.28347225,0.00032,2]
[312597676,1706050245604,-156.28347225,0.00032,2]
[312597678,1706050245613,-156.28347225,0.00032,2]
[312597680,1706050245622,-156.28347225,0.00032,2]
[312597682,1706050245631,-156.28347225,0.00032,2]
[312597684,1706050245639,-156.28347225,0.00032,2]
[312597686,1706050245649,-156.28347225,0.00032,2]
[312597688,1706050245658,-156.28347225,0.00032,2]
[312597690,1706050245667,-156.28347225,0.00032,2]
[312597693,1706050245676,-156.28347225,0.00032,2]
[312597695,1706050245685,-156.28347225,0.00032,2]
[312597698,1706050245694,-156.28347225,0.00032,2]
[312597700,1706050245703,-156.28347225,0.00032,2]
[312597702,1706050245712,-156.28347225,0.00032,2]
[312597704,1706050245721,-156.28347225,0.00032,2]
[312597706,1706050245730,-156.28347225,0.00032,2]
[312597708,1706050245739,-712.49,0.00032011,2]
[312597710,1706050245748,-990.24,0.00032011,2]
[312597712,1706050245757,-806.29,0.00032011,2]
[312597714,1706050245766,-921.87,0.00032011,2]
[312597716,1706050245775,-150.0,0.00032099,2]
[312597718,1706050245784,-167.02,0.00032144,2]
[312597720,1706050245793,-206.82760618,0.000322,2]
[312597722,1706050245803,-1593.35187145,0.0003227,5]
[312597724,1706050245812,-500.0,0.000323,2]
[312597726,1706050245821,-712.49,0.000323,2]
[312597728,1706050245830,-990.24,0.000323,2]
[312597730,1706050245838,-806.29,0.000323,2]
[312597732,1706050245847,-921.87,0.000323,2]
[312597734,1706050245856,-153.84,0.00032329,2]
[312597736,1706050245865,-205.0,0.0003239,2]
[312597738,1706050245874,-204.0,0.0003239,2]
[312597740,1706050245883,-8267.51678191,0.00032429,4]
[312597742,1706050245893,-500.0,0.00032479,2]
[312597744,1706050245902,-9145.01087602,0.000325,2]
[312597746,1706050245911,-202.14005141,0.000325,2]
[312597748,1706050245920,-712.49,0.00032588,2]
[312597750,1706050245929,-990.24,0.00032588,2]
[312597752,1706050245938,-806.29,0.00032588,2]
[312597754,1706050245950,-921.87,0.00032588,2]
[312597756,1706050245960,-426.0,0.0003269,2]
[312597758,1706050245969,-232.0,0.0003269,2]
[312597760,1706050245978,-2268.0,0.0003269,2]
[312597762,1706050245987,-1237.43087485,0.000327,2]
[312597764,1706050245997,-1237.43087476,0.000327,2]
[312597766,1706050246006,-1237.43087476,0.000327,2]
[312597768,1706050246016,-1237.43087476,0.000327,2]
[312597769,1706050246027,-1237.43087476,0.000327,2]
[312597770,1706050246037,-1237.43087476,0.000327,2]
[312597771,1706050246045,-1237.43087476,0.000327,2]
[312597772,1706050246055,-1237.43087476,0.000327,2]
[312597773,1706050246064,-1237.43087476,0.000327,2]
[312597774,1706050246073,-1237.43087476,0.000327,2]
[312597775,1706050246082,-1237.43087476,0.000327,2]
[312597776,1706050246091,-1237.43087476,0.000327,2]
[312597777,1706050246101,-1237.43087476,0.000327,2]
[312597778,1706050246110,-1237.43087476,0.000327,2]
[312597779,1706050246119,-1237.43087476,0.000327,2]
[312597780,1706050246129,-1237.43087476,0.000327,2]
[312597781,1706050246138,-1237.43087476,0.000327,2]
[312597783,1706050246147,-1237.43087476,0.000327,2]
[312597785,1706050246156,-1237.43087476,0.000327,2]
[312597787,1706050246166,-1237.43087476,0.000327,2]
[312597789,1706050246176,-150.0,0.00032799,2]
[312597791,1706050246185,-712.49,0.00032877,2]
[312597793,1706050246194,-990.24,0.00032877,2]
[312597796,1706050246208,-806.29,0.00032877,2]
[312597798,1706050246218,-921.87,0.00032877,2]
[312597800,1706050246227,-150.9,0.00032877,2]
[312597802,1706050246237,-18998.48,0.00032877,2]
[312597804,1706050246247,-152.72,0.00032877,2]
[312597806,1706050246256,-1379.74,0.00032877,15]
[312597808,1706050246265,-155.0,0.00032877,2]
[312597810,1706050246275,-8676.14,0.0003288,2]
[312597812,1706050246284,-8676.14,0.0003288,2]
[312597814,1706050246293,-8676.14,0.0003288,2]
[312597816,1706050246303,-8676.14,0.0003288,2]
[312597818,1706050246312,-8676.14,0.0003288,2]
[312597820,1706050246321,-957.32809219,0.000329,2]
[312597822,1706050246331,-3502.15421769,0.000329,2]
[312597824,1706050246340,-12967.78307742,0.000329,2]
[312597826,1706050246349,-1438.82,0.00032947,2]
[312597828,1706050246358,-2424.13979532,0.00032997,2]
[312597830,1706050246368,-500.0,0.00032999,2]
[312597832,1706050246378,-4122.03938288,0.00033,4]
[312597834,1706050246387,-181.2462356,0.00033,2]
[312597836,1706050246396,-22021.43785049,0.00033,2]
[312597838,1706050246406,-650.0,0.00033,3]
[312597840,1706050246415,-500.0,0.00033,7]
[312597842,1706050246424,-2218.540448,0.00033,2]
[312597844,1706050246434,-307.38,0.00033,2]
[312597846,1706050246443,-150.0,0.00033099,2]
[312597848,1706050246453,-167.02,0.0003311,2]
[312597850,1706050246462,-186.0,0.00033128,2]
[312597852,1706050246471,-8267.51678191,0.00033336,5]
[312597854,1706050246481,-393.27292484,0.000335,2]
[312597856,1706050246490,-25725.42706865,0.000335,4]
[312597858,1706050246500,-14448.98,0.000337,2]
[312597860,1706050246509,-16732.9,0.00033844,2]
[312597862,1706050246518,-1072.47,0.00033844,2]
[312597865,1706050246527,-1317.1,0.00033844,2]
[312597867,1706050246537,-3605.26,0.00033844,2]
[312597869,1706050246546,-29999.99,0.00033844,30]
[312597871,1706050246556,-1593.35187145,0.00033927,6]
[312597873,1706050246565,-205.0,0.0003394,2]
[312597875,1706050246574,-204.0,0.0003394,2]
[312597877,1706050246583,-1703.2277315,0.00033977,2]
[312597879,1706050246592,-3014.9280225,0.00033977,2]
[312597881,1706050246601,-220612.4287213,0.00033977,2]
[312597883,1706050246610,-4042.5925294,0.00033977,2]
[312597884,1706050246620,-150.0,0.00033999,2]
[312597885,1706050246629,-156.09660237,0.00033999,2]
[312597886,1706050246639,-1000.0,0.00034,4]
[312597887,1706050246648,-500.0,0.00034,2]
[312597888,1706050246657,-506.76637801,0.00034,4]
[312597889,1706050246666,-156.05994652,0.00034,4]
[312597890,1706050246676,-2030.99426907,0.00034,2]
[312597891,1706050246685,-13207.55446767,0.00034,2]
[312597892,1706050246713,-10834.1461,0.00034,2]
[312597895,1706050247554,-334516.77918667,0.00034,2]
[312597896,1706050247569,-1931.79587806,0.00034,2]
[312597897,1706050312917,2783.22880565,6.94e-05,2]
[312597898,1706050325731,2970.45520984,0.000199,3]
[312597899,1706050388479,205.0,9.8e-05,2]
[312597900,1706050392491,4920.72148636,0.0001305,2]
[312597901,1706050392588,238.96590853,0.000101,2]
[312597902,1706050446282,282.82476802,0.000125,2]
[312597903,1706050462193,205.80534595,0.0001,2]
[312597936,1706051431766,377.26,0.00020636,2]
[312597975,1706051438040,-674.975,0.00021999,2]
[312597978,1706051438191,-325.025,0.00021999,2]
[312597979,1706051438201,-150.0,0.00022,2]
[312597980,1706051438211,-150.0,0.00022,2]
[312597981,1706051438220,-150.0,0.00022,2]
[312597982,1706051438229,-176.47,0.00022,2]
[312597983,1706051438238,-3273.0507729,0.00022,2]
[312597984,1706051438251,-1726.9492271,0.00022,2]
[312597985,1706051438260,-237.04,0.00022535,2]
[312597986,1706051438269,-211.00410547,0.00022548,2]
[312597987,1706051438279,-176.47,0.00022548,2]
[312597988,1706051438288,-148.53666743,0.00022628,2]
[312597989,1706051438300,-851.46333257,0.00022628,2]
[312597990,1706051438309,-186.0,0.00022722,2]
[312597991,1706051438322,-250.0,0.00022744,2]
[312597992,1706051438332,-150.0,0.00022788,2]
[312597993,1706051438341,-774.55771993,0.00022789,2]
[312597994,1706051438353,-1711.8021486,0.00022789,2]
[312597995,1706051438365,-508.54551295,0.00022789,2]
[312597996,1706051438377,-516.0363,0.00022789,2]
[312597997,1706051438389,-19866.35831852,0.00022789,2]
[312597998,1706051438399,-499.99,0.000228,2]
[312597999,1706051438409,-719.41,0.00022837,2]
[312598000,1706051438419,-166.23566966,0.0002285,2]
[312598001,1706051438428,-466.1419,0.00022899,2]
[312598002,1706051438438,-377.26,0.000229,2]
[312598003,1706051438447,-165.92298531,0.000229,2]
[312598004,1706051438457,-500.0,0.000229,2]
[312598005,1706051438466,-3583.2534,0.000229,2]
[312598006,1706051438475,-193.22028902,0.000229,2]
[312598008,1706051438485,-166.23566966,0.000229,2]
[312598010,1706051438494,-150.43089906,0.000229,2]
[312598012,1706051438504,-279.3351,0.000229,2]
[312598014,1706051438513,-995.84491971,0.000229,2]
[312598016,1706051438522,-5000.0,0.000229,2]
[312598018,1706051438532,-206.27904587,0.000229,2]
[312598020,1706051438542,-355.75942243,0.000229,2]
[312598022,1706051438552,-4822.71812283,0.000229,2]
[312598024,1706051438560,-165.51,0.00022942,2]
[312598027,1706051438570,-190.09319731,0.0002299,2]
[312598030,1706051438579,-5236.35569325,0.00022998,5]
[312598033,1706051438589,-5446.81147252,0.00022999,2]
[312598036,1706051438598,-164.93302918,0.00022999,2]
[312598038,1706051438607,-237.24,0.00022999,2]
[312598040,1706051438617,-221.22,0.00022999,5]
[312598042,1706051438626,-16442.07503228,0.00023,2]
[312598051,1706051438723,-911.59848134,0.00023,2]
[312598052,1706051438735,-28146.13775318,0.00023,2]
[312598053,1706051438747,-7001.52731906,0.00023,2]
[312598054,1706051438828,-6586.68707746,0.00023,2]
[312598055,1706051438840,-738.54219566,0.00023,2]
[312598056,1706051438851,-600.1668679,0.00023,2]
[312598057,1706051438867,-1682278.76787276,0.00023,2]
[312598058,1706051439673,-43599.15233996,0.00023,2]
[312598060,1706051440517,-2504.89893196,0.00023,2]
[312598061,1706051440528,-396.128,0.00023,2]
[312598062,1706051440541,-831.58486437,0.00023,2]
[312598063,1706051440603,-310.08111749,0.00023,2]
[312598064,1706051441307,-1254.14327998,0.00023,2]
[312598065,1706051441357,-22953.0494094,0.00023,2]
[312598066,1706051441369,-367623.36046951,0.00023,2]
[312598067,1706051441398,-15676.81570379,0.00023,2]
[312598098,1706051443115,-4895.59340536,0.00023,2]
[312598102,1706051443184,-99332.53277901,0.00023,2]
[312598103,1706051443197,-651.06340159,0.00023,2]
[312598104,1706051443250,-424.81418838,0.00023,2]
[312598105,1706051443262,-288.11805248,0.00023,2]
[312598106,1706051443285,-910.50949508,0.00023,2]
[312598107,1706051443385,-2189.91385703,0.00023,2]
[312598108,1706051443398,-3537.8863108,0.00023,2]
[312598109,1706051443468,-871.42602649,0.00023,2]
[312598119,1706051446147,-1370.19300514,0.000229,2]
[312598120,1706051446204,-430.22874,0.000229,2]
[312598121,1706051446216,-6844.76697316,0.000229,2]
[312598122,1706051446225,-9095.03302684,0.00023,2]
[312598123,1706051446237,-34561.96494399,0.00023,2]
[312598124,1706051446271,-253.95603822,0.00023,2]
[312598125,1706051446331,-2909.57640689,0.00023,2]
[312598126,1706051446346,-3957.1,0.00023,2]
[312598127,1706051446390,-93455.10166399,0.00023,2]
[312599364,1706052633746,-223.24249897,0.00021192,4]
[312599365,1706052633755,-203.70503703,0.00021192,2]
[312599366,1706052633768,-796.29496297,0.00021192,2]
[312599367,1706052633778,-203.0,0.00021193,2]
[312599368,1706052633789,-111.50727703,0.00021472,2]
[312599369,1706052633820,-241.51272297,0.00021472,2]
[312599370,1706052633830,-288.7526917,0.000219,2]
[312599371,1706052633841,-449.78950396,0.000219,2]
[312599372,1706052633851,-2491.94719831,0.00022079,2]
[312599373,1706052633860,-411.83573535,0.00022542,2]
[312599374,1706052633873,-656.2160223,0.00022542,2]
[312599375,1706052633972,-400.08481297,0.00022542,2]
[312599379,1706052634135,-3500.00354851,0.00022542,2]
[312599382,1706052634146,-280.378098,0.00022542,2]
[312599384,1706052634161,-323.26186872,0.00022542,2]
[312599387,1706052634172,-255.97559429,0.00022542,2]
[312599390,1706052634199,-7975.34405571,0.00022542,2]
[312599391,1706052634211,-2992.2494027,0.00022542,2]
[312599413,1706052638236,-2171.93857689,0.00022542,2]
[312599415,1706052638247,-898.15354925,0.00022542,2]
[312599416,1706052638258,-367.06866657,0.00022542,2]
[312599417,1706052638360,-43599.15233996,0.00022542,2]
[312599418,1706052638481,-19833.0,0.00022542,2]
[312599419,1706052638494,-7947.06239999,0.00022542,2]
[312599420,1706052638595,-4000.0,0.00022542,2]
[312599442,1706052641390,-268.90768905,0.00022542,2]
[312599443,1706052641402,-373.20363653,0.00022542,2]
[312599444,1706052641507,-2114.17918144,0.00022542,2]
[312599445,1706052641570,-2389.275,0.00022542,2]
[312599446,1706052641582,-840.15350014,0.00022542,2]
[312599461,1706052643901,-413.38196027,0.00022541,2]
[312599471,1706052644019,-2618.88500446,0.00022541,2]
[312599472,1706052644033,-1527.21197598,0.00022541,2]
[312599473,1706052644044,-16777.80159656,0.00022542,2]
[312599474,1706052644193,-10536.4,0.00022542,2]
[312599475,1706052644206,-11848.20544581,0.00022542,2]
[312599493,1706052647052,-300.0,0.00021371,2]
[312599494,1706052647062,-574.93668074,0.00022541,2]
[312599495,1706052647076,-336.9592333,0.00022542,2]
[312599496,1706052647241,-341.40124926,0.00022542,2]
[312599497,1706052647294,-9475.98200253,0.00022542,2]
[312599498,1706052647307,-5983.12110001,0.00022542,2]
[312599499,1706052658919,161.73873038,0.00020698,2]
[312599506,1706052714730,284.53495781,0.00020698,2]
[312599509,1706052728726,283.60761996,0.00020698,2]
[312599510,1706052731787,361.53523337,0.00020698,2]
[312599512,1706052747784,481.18809215,0.00020698,2]
[312599518,1706052809946,362.33,0.00020364,2]
[312599524,1706052966393,203.0,0.00020193,2]
[312599564,1706053236437,344.21,0.00019856,2]
[312599565,1706053301661,200.98286647,0.00019757,2]
[312599567,1706053624469,-1000.0,0.00021673,2]
[312599568,1706053624492,-161.55758064,0.00021674,2]
[312599569,1706053624512,-303.92,0.00021674,2]
[312599570,1706053624534,-164.98,0.00021674,2]
[312599571,1706053624555,-206.88634745,0.000217,2]
[312599572,1706053624577,-2633.99,0.00021767,2]
[312599573,1706053624598,-336.46,0.00021774,2]
[312599574,1706053624619,-800.0,0.00021779,2]
[312599575,1706053624641,-964.53,0.00021854,2]
[312599576,1706053624934,-250.0,0.00021918,2]
[312599577,1706053624955,-519.19,0.00021918,2]
[312599581,1706053665498,326.99,0.0002031,2]
[312599592,1706053775396,168.23,0.00021946,2]
[312599608,1706053831433,-1000.0,0.00022016,2]
[312599609,1706053831444,-803.77,0.00022017,2]
[312599610,1706053831453,-12.24165128,0.00022078,2]
[312599611,1706053831468,-1000.0,0.00022078,2]
[312599612,1706053831542,-440.47735778,0.00022078,2]
[312599613,1706053831552,-173.29,0.00022111,2]
[312599614,1706053831561,-200.0,0.00022161,2]
[312599615,1706053831571,-803.0542357,0.00022307,2]
[312599616,1706053831583,-5644.419585,0.00022307,2]
[312599617,1706053831592,-11573.89324841,0.00022307,2]
[312599618,1706053831602,-2475.29256209,0.00022308,2]
[312599619,1706053831611,-889.88654969,0.0002232,2]
[312599620,1706053831649,-1251.47,0.0002232,2]
[312599621,1706053831661,-5406.13793616,0.0002232,2]
[312599622,1706053831670,-173.29,0.00022495,2]
[312599623,1706053831680,-2136.88917053,0.00022539,2]
[312599624,1706053831690,-224.52187854,0.0002254,2]
[312599625,1706053831701,-224.99,0.0002254,3]
[312599626,1706053831710,-326.99,0.00022574,2]
[312599627,1706053831720,-1000.0,0.00022759,2]
[312599628,1706053831729,-26157.63587491,0.0002276,2]
[312599629,1706053831740,-196.51086474,0.00022768,4]
[312599630,1706053831749,-3949.47117312,0.0002277,2]
[312599658,1706053837453,-1058.031975,0.0002277,2]
[312599659,1706053837465,-795.64,0.0002277,2]
[312599660,1706053837506,-16952.85685188,0.0002277,2]
[312599661,1706053837516,-1000.0,0.00022799,2]
[312599662,1706053837526,-907.7525716,0.00022853,2]
[312599663,1706053837535,-173.29,0.00022879,2]
[312599664,1706053837545,-527.64290254,0.00022898,2]
[312599665,1706053837554,-2885.45767398,0.000229,2]
[312599666,1706053837582,-1634.68748641,0.000229,2]
[312599667,1706053837592,-52288.8074,0.000229,2]
[312599668,1706053837602,-5000.0,0.000229,2]
[312599669,1706053837612,-150.49429675,0.000229,2]
[312599670,1706053837622,-7451.541,0.000229,2]
[312599671,1706053837631,-18110.1666,0.000229,2]
[312599672,1706053837641,-187.66772548,0.000229,2]
[312599673,1706053837650,-2266.3932435,0.000229,2]
[312599674,1706053837659,-1241.46135441,0.000229,2]
[312599675,1706053837669,-558.2078508,0.000229,2]
[312599676,1706053837679,-262.5,0.00022971,2]
[312599677,1706053837689,-263.49556138,0.0002299,2]
[312599678,1706053837700,-202.72914679,0.00022998,2]
[312599679,1706053837709,-159.86355744,0.00022998,2]
[312599680,1706053837720,-250.80435435,0.00022998,2]
[312599681,1706053837730,-155.29116631,0.00022998,2]
[312599682,1706053837740,-293.36223225,0.00022998,2]
[312599683,1706053837750,-523.91888511,0.00022998,2]
[312599684,1706053837759,-703.54210241,0.00022998,4]
[312599685,1706053837769,-877.37870005,0.00022998,2]
[312599686,1706053837779,-284.46902432,0.00022998,2]
[312599687,1706053837788,-165.02380166,0.00022998,2]
[312599689,1706053837798,-1492.68847402,0.00022998,2]
[312599691,1706053837807,-432.50906314,0.00022998,2]
[312599693,1706053837818,-1760.13178104,0.00022998,2]
[312599695,1706053837827,-160.05458774,0.00022998,2]
[312599697,1706053837837,-155.0,0.00022998,2]
[312599699,1706053837846,-598.94667683,0.00022998,2]
[312599701,1706053837855,-270.34902389,0.00022998,2]
[312599702,1706053837865,-158.39619227,0.00022998,2]
[312599703,1706053837874,-1581.20363332,0.00022998,2]
[312599704,1706053837884,-171.72993074,0.00022998,2]
[312599706,1706053837894,-231.76884349,0.00022998,2]
[312599707,1706053837904,-474.50251193,0.00022998,2]
[312599709,1706053837914,-689.73808558,0.00022998,2]
[312599710,1706053837923,-164.96152334,0.00022998,2]
[312599712,1706053837932,-7105.1667781,0.00022998,5]
[312599713,1706053837942,-238.17470059,0.00022998,2]
[312599715,1706053837953,-387.20230097,0.00022998,2]
[312599716,1706053837963,-4147.38163494,0.00022998,2]
[312599717,1706053837974,-356.4982323,0.00022999,2]
[312599718,1706053837984,-232.94373461,0.00022999,2]
[312599719,1706053837994,-718.56340982,0.00022999,2]
[312599720,1706053838005,-5844.46828354,0.00023,2]
[312599721,1706053838018,-1008.0,0.00023,2]
[312599722,1706053838053,-20528.85935465,0.00023,2]
[312599723,1706053838066,-2347.59359163,0.00023,2]
[312599724,1706053838094,-1251.75,0.00023,2]
[312599725,1706053838105,-2819.04784399,0.00023,2]
[312599726,1706053838142,-41196.62473321,0.00023,2]
[312599727,1706053838154,-24069.9999999,0.00023,2]
[312599728,1706053838167,-4242.55195964,0.00023,2]
[312599729,1706053838179,-22745.0,0.00023,2]
[312599730,1706053839857,-1395.14059828,0.00023,2]
[312599731,1706053839870,-276.6836412,0.00023,2]
[312599732,1706053839887,-689.94748153,0.00023,2]
[312599733,1706053839915,-21335.43729165,0.00023,2]
[312599734,1706053839927,-504.29789126,0.00023,2]
[312599735,1706053839939,-1279.53726548,0.00023,2]
[312599736,1706053839951,-936.70081708,0.00023,2]